[Event "Asian Amateur-ch Open 2022"]
[Site "Muscat"]
[Date "2022.10.02"]
[Round "2.19"]
[White "Al Harasi Saif"]
[Black "Ferzli, Dany Michael"]
[Result "0-1"]
[ECO "B15"]
[WhiteElo "1518"]
[BlackElo "1789"]
[Annotator "NA RC COMBH"]
[PlyCount "144"]
[EventDate "2022.09.29"]
[EventType "swiss"]
[SourceTitle "playchess.com"]
[Source "ChessBase"]
[SourceQuality "1"]
[TimeControl "5400+30"]

1. e4 {[%emt 0:06:16]} c6 {[%emt 0:00:11]} 2. d4 {[%emt 0:00:17]} d5 {[%emt 0:00:07]} 3. Nc3 {[%emt 0:00:34]} dxe4 {[%emt 0:00:08]} 4. Nxe4 {[%emt 0:00:12]} Nf6 {[%emt 0:00:04]} 5. Nxf6+ {[%emt 0:00:31]} exf6 {[%emt 0:00:02]} 6. Nf3 {[%emt 0:00:38]} Bd6 {[%emt 0:00:08]} 7. Bd3 {[%emt 0:00:45]} O-O {[%emt 0:00:18]} 8. O-O {[%emt 0:00:40]} Bg4 {[%emt 0:02:56]} 9. h3 {[%emt 0:00:15]} Bxf3 {[%emt 0:00:18]} 10. Qxf3 {[%emt 0:00:15]} Re8 {[%emt 0:02:19]} 11. c4 {[%emt 0:00:27]} Nd7 {[%emt 0:01:29]} 12. Be3 {[%emt 0:02:57]} Qc7 {[%emt 0:03:44]} 13. c5 {[%emt 0:01:10]} Bf8 {[%emt 0:00:43]} 14. Rad1 {[%emt 0:01:26]} b6 {[%emt 0:08:14]} 15. b4 {[%emt 0:02:25]} a5 {[%emt 0:02:12]} 16. a3 {[%emt 0:01:13]} axb4 {[%emt 0:00:06]} 17. axb4 {[%emt 0:00:12]} Ra4 {[%emt 0:06:56]} 18. b5 {[%emt 0:01:44]} bxc5 {[%emt 0:03:40]} 19. dxc5 {[%emt 0:01:21]} Ne5 {[%emt 0:02:12]} 20. Qg3 {[%emt 0:01:46]} Qc8 {[%emt 0:04:11]} 21. Bc2 {[%emt 0:06:30]} Ra5 {[%emt 0:02:26]} 22. b6 {[%emt 0:08:39]} Bxc5 {[%emt 0:00:35]} 23. Bxc5 {[%emt 0:00:11]} Rxc5 {[%emt 0:00:02]} 24. Bb3 {[%emt 0:04:34]} Rb5 {[%emt 0:04:05]} 25. Rb1 {[%emt 0:00:16]} Qb8 {[%emt 0:02:26]} 26. Qe3 {[%emt 0:08:49]} Nd7 {[%emt 0:03:43]} 27. Qd3 {[%emt 0:00:09]} Nc5 {[%emt 0:04:59]} 28. Bxf7+ {[%emt 0:07:54]} Kxf7 {[%emt 0:00:02]} 29. Qc4+ {[%emt 0:00:10]} Ne6 {[%emt 0:00:03]} 30. Qxc6 {[%emt 0:01:14]} Rxb1 {[%emt 0:00:42]} 31. Rxb1 {[%emt 0:00:12]} Nd8 {[%emt 0:14:05]} 32. Qd5+ {[%emt 0:01:33]} Kf8 {[%emt 0:00:23]} 33. b7 {[%emt 0:02:54]} Nxb7 {[%emt 0:06:41]} 34. g3 {[%emt 0:03:49]} Re7 {[%emt 0:00:37]} 35. Qf5 {[%emt 0:03:00]} Kg8 {[%emt 0:02:08]} 36. Rc1 {[%emt 0:00:32]} Rc7 {[%emt 0:03:31]} 37. Re1 {[%emt 0:01:37]} Qc8 {[%emt 0:01:21]} 38. Qd5+ {[%emt 0:03:11]} Kh8 {[%emt 0:00:30]} 39. Kh2 {[%emt 0:00:45]} h6 {[%emt 0:00:57]} 40. Qb5 {[%emt 0:00:22]} Nd6 {[%emt 0:01:57]} 41. Qb6 {[%emt 0:02:15]} Rc6 {[%emt 0:01:08]} 42. Qb4 {[%emt 0:01:07]} Nf7 {[%emt 0:00:43]} 43. Qb3 {[%emt 0:06:18]} Ne5 {[%emt 0:00:30]} 44. Re3 {[%emt 0:01:45]} Rc2 {[%emt 0:01:17]} 45. Kg1 {[%emt 0:01:02]} Rc1+ {[%emt 0:00:18]} 46. Kg2 {[%emt 0:00:14]} Qc6+ {[%emt 0:00:09]} 47. f3 {[%emt 0:00:46]} Qc2+ {[%emt 0:02:53]} 48. Qxc2 {[%emt 0:00:23]} Rxc2+ {[%emt 0:00:04]} 49. Kf1 {[%emt 0:00:18]} Kh7 {[%emt 0:00:16]} 50. f4 {[%emt 0:00:36]} Nc4 {[%emt 0:00:52]} 51. Rd3 {[%emt 0:00:22]} h5 {[%emt 0:00:36]} 52. Ke1 {[%emt 0:00:21]} f5 {[%emt 0:00:58]} 53. Rd5 {[%emt 0:00:53]} g6 {[%emt 0:00:50]} 54. h4 {[%emt 0:01:44]} Rg2 {[%emt 0:00:32]} 55. Rd3 {[%emt 0:00:18]} Na5 {[%emt 0:00:58]} 56. Kf1 {[%emt 0:00:11]} Ra2 {[%emt 0:00:11]} 57. Rd7+ {[%emt 0:00:34]} Kh6 {[%emt 0:00:33]} 58. Ra7 {[%emt 0:00:32]} Ra1+ {[%emt 0:00:15]} 59. Kf2 {[%emt 0:00:31]} Nb3 {[%emt 0:00:08]} 60. Rxa1 {[%emt 0:00:14]} Nxa1 {[%emt 0:00:25]} 61. Kf3 {[%emt 0:00:07]} Nc2 {[%emt 0:01:09]} 62. Ke2 {[%emt 0:00:19]} Nb4 {[%emt 0:00:18]} 63. Ke3 {[%emt 0:00:21]} Nd5+ {[%emt 0:00:06]} 64. Kd4 {[%emt 0:00:17]} Nf6 {[%emt 0:00:09]} 65. Ke3 {[%emt 0:00:29]} Ne4 {[%emt 0:00:05]} 66. Kf3 {[%emt 0:00:19]} Kg7 {[%emt 0:00:06]} 67. Kg2 {[%emt 0:00:45]} Kf6 {[%emt 0:00:05]} 68. Kf3 {[%emt 0:00:24]} Ke6 {[%emt 0:00:06]} 69. Kg2 {[%emt 0:00:15]} Kd5 {[%emt 0:00:05]} 70. Kf3 {[%emt 0:00:24]} Kd4 {[%emt 0:00:05]} 71. Kg2 {[%emt 0:00:12]} Ke3 {[%emt 0:00:06]} 72. Kh3 {[%emt 0:00:18]} Kf3 {[%emt 0:00:04]} 0-1

[Event "Asian Amateur-ch Open 2022"]
[Site "Muscat"]
[Date "2022.10.02"]
[Round "2.20"]
[White "Al Abdali, Zeyad Saleh"]
[Black "Al Zaabi, Faras"]
[Result "1-0"]
[ECO "A57"]
[WhiteElo "1780"]
[BlackElo "1514"]
[Annotator "NA RC COMBH"]
[PlyCount "79"]
[EventDate "2022.09.29"]
[EventType "swiss"]
[SourceTitle "playchess.com"]
[Source "ChessBase"]
[SourceQuality "1"]
[TimeControl "5400+30"]

1. d4 {[%emt 0:05:01]} Nf6 {[%emt 0:00:11]} 2. Nf3 {[%emt 0:02:32]} g6 {[%emt 1:31:19]} 3. c4 {[%emt 0:00:46]} c5 {[%emt 0:00:00]} 4. d5 {[%emt 0:00:32]} b5 {[%emt 0:00:00]} 5. cxb5 {[%emt 0:00:39]} a6 {[%emt 0:00:00]} 6. b6 {[%emt 0:01:24]} d6 {[%emt 0:00:00]} 7. Nc3 {[%emt 0:00:25]} Bg7 {[%emt 0:00:00]} 8. e4 {[%emt 0:01:43]} O-O {[%emt 0:00:00]} 9. Qb3 {[%emt 0:15:13]} Bb7 {[%emt 0:00:00]} 10. Nd2 {[%emt 0:04:24]} Nbd7 {[%emt 0:00:00]} 11. Nc4 {[%emt 0:03:04]} Ng4 {[%emt 0:00:00]} 12. Be2 {[%emt 0:04:41]} Nge5 {[%emt 0:00:00]} 13. Na5 {[%emt 0:04:01]} Rb8 {[%emt 0:00:00]} 14. f4 {[%emt 0:08:12]} c4 {[%emt 0:00:00]} 15. Qb4 {[%emt 0:04:15]} Nd3+ {[%emt 0:00:00]} 16. Bxd3 {[%emt 0:00:15]} cxd3 {[%emt 0:00:00]} 17. Be3 {[%emt 0:01:37]} f5 {[%emt 0:00:00]} 18. Nc6 {[%emt 0:03:21]} Bxc6 {[%emt 0:00:00]} 19. dxc6 {[%emt 0:00:51]} Bxc3+ {[%emt 0:00:00]} 20. Qxc3 {[%emt 0:02:31]} Rxb6 {[%emt 0:00:00]} 21. cxd7 {[%emt 0:02:07]} Rb7 {[%emt 0:00:00]} 22. Qc4+ {[%emt 0:01:21]} Rf7 {[%emt 0:00:00]} 23. O-O {[%emt 0:05:07]} Qxd7 {[%emt 0:00:00]} 24. Qxd3 {[%emt 0:01:22]} Rxb2 {[%emt 0:00:00]} 25. Bd4 {[%emt 0:07:45]} fxe4 {[%emt 0:00:00]} 26. Qxe4 {[%emt 0:01:29]} Rb4 {[%emt 0:00:00]} 27. Rab1 {[%emt 0:02:09]} Rxb1 {[%emt 0:00:00]} 28. Rxb1 {[%emt 0:00:17]} e6 {[%emt 0:00:00]} 29. Rb8+ {[%emt 0:01:47]} Rf8 {[%emt 0:00:00]} 30. Rxf8+ {[%emt 0:00:26]} Kxf8 {[%emt 0:00:00]} 31. Qa8+ {[%emt 0:00:24]} Ke7 {[%emt 0:00:00]} 32. Qg8 {[%emt 0:00:51]} Qa4 {[%emt 0:00:00]} 33. Qxh7+ {[%emt 0:01:49]} Ke8 {[%emt 0:00:00]} 34. Qxg6+ {[%emt 0:00:27]} Kd7 {[%emt 0:00:00]} 35. Qf7+ {[%emt 0:01:56]} Kc8 {[%emt 0:00:00]} 36. Qxe6+ {[%emt 0:00:22]} Kc7 {[%emt 0:00:00]} 37. Qe7+ {[%emt 0:06:21]} Kc8 {[%emt 0:00:10]} 38. Qxd6 {[%emt 0:01:07]} Qd1+ {[%emt 0:00:40]} 39. Kf2 {[%emt 0:00:11]} Qc2+ {[%emt 0:02:08]} 40. Kg3 {[%emt 0:02:17]} 1-0

[Event "Asian Amateur-ch Open 2022"]
[Site "Muscat"]
[Date "2022.10.02"]
[Round "2.21"]
[White "Al Mamari, Ali Abdullah"]
[Black "Sharma Pankaj"]
[Result "0-1"]
[ECO "C00"]
[WhiteElo "1509"]
[BlackElo "1764"]
[Annotator "NA RC COMBH"]
[PlyCount "104"]
[EventDate "2022.09.29"]
[EventType "swiss"]
[SourceTitle "playchess.com"]
[Source "ChessBase"]
[SourceQuality "1"]
[TimeControl "5400+30"]

1. e4 {[%emt 0:00:05]} e6 {[%emt 0:00:14]} 2. d3 {[%emt 0:00:28]} d5 {[%emt 0:00:54]} 3. Nd2 {[%emt 0:00:23]} Nf6 {[%emt 0:00:14]} 4. Ngf3 {[%emt 0:00:10]} c5 {[%emt 0:00:14]} 5. g3 {[%emt 0:00:22]} b6 {[%emt 0:01:17]} 6. Bg2 {[%emt 0:01:12]} Bb7 {[%emt 0:00:26]} 7. O-O {[%emt 0:00:25]} Nc6 {[%emt 0:02:50]} 8. Re1 {[%emt 0:02:49]} Be7 {[%emt 0:00:39]} 9. c3 {[%emt 0:00:34]} dxe4 {[%emt 0:04:37]} 10. dxe4 {[%emt 0:00:10]} Qc7 {[%emt 0:04:21]} 11. Nc4 {[%emt 0:05:49]} Rd8 {[%emt 0:05:39]} 12. Qc2 {[%emt 0:05:54]} b5 {[%emt 0:06:12]} 13. Bf4 {[%emt 0:02:27]} Qc8 {[%emt 0:00:28]} 14. Nce5 {[%emt 0:02:12]} O-O {[%emt 0:07:49]} 15. Rad1 {[%emt 0:04:22]} Qa8 {[%emt 0:02:55]} 16. Ng5 {[%emt 0:10:20]} Nxe5 {[%emt 0:03:59]} 17. Bxe5 {[%emt 0:00:12]} h6 {[%emt 0:00:43]} 18. Bxf6 {[%emt 0:01:42]} Bxf6 {[%emt 0:00:24]} 19. Nh3 {[%emt 0:00:33]} c4 {[%emt 0:09:28]} 20. Nf4 {[%emt 0:02:23]} Be7 {[%emt 0:04:08]} 21. e5 {[%emt 0:07:33]} Bxg2 {[%emt 0:00:30]} 22. Nxg2 {[%emt 0:00:06]} Bc5 {[%emt 0:05:35]} 23. Qe2 {[%emt 0:11:02]} Rxd1 {[%emt 0:07:08]} 24. Rxd1 {[%emt 0:01:02]} Rd8 {[%emt 0:00:02]} 25. Rxd8+ {[%emt 0:06:06]} Qxd8 {[%emt 0:00:02]} 26. Kf1 {[%emt 0:02:49]} Qd5 {[%emt 0:00:30]} 27. f3 {[%emt 0:00:38]} Bb6 {[%emt 0:00:47]} 28. Ke1 {[%emt 0:03:51]} Qc5 {[%emt 0:00:47]} 29. Kd2 {[%emt 0:00:28]} Qg1 {[%emt 0:00:24]} 30. Kc2 {[%emt 0:10:53]} Qxh2 {[%emt 0:01:15]} 31. g4 {[%emt 0:00:27]} g5 {[%emt 0:03:08]} 32. a3 {[%emt 0:04:52]} Bc7 {[%emt 0:01:18]} 33. Kb1 {[%emt 0:00:52]} Qxe5 {[%emt 0:00:57]} 34. Qd1 {[%emt 0:01:33]} Bb6 {[%emt 0:01:10]} 35. Ka2 {[%emt 0:01:16]} Bf2 {[%emt 0:04:14]} 36. Qd2 {[%emt 0:02:37]} Qg3 {[%emt 0:00:42]} 37. Ne3 {[%emt 0:00:57]} Qxf3 {[%emt 0:00:26]} 38. Qd8+ {[%emt 0:01:16]} Kh7 {[%emt 0:01:39]} 39. Nc2 {[%emt 0:01:15]} Qxg4 {[%emt 0:03:09]} 40. Nb4 {[%emt 0:00:18]} Qf3 {[%emt 0:04:24]} 41. Qe8 {[%emt 0:00:38]} Bc5 {[%emt 0:06:30]} 42. Nc6 {[%emt 0:00:33]} Qf6 {[%emt 0:00:56]} 43. Nb8 {[%emt 0:01:52]} Bd6 {[%emt 0:01:49]} 44. Nc6 {[%emt 0:02:22]} g4 {[%emt 0:01:53]} 45. Qd7 {[%emt 0:00:15]} Bc5 {[%emt 0:01:17]} 46. Nd8 {[%emt 0:02:00]} Kg7 {[%emt 0:00:40]} 47. Nb7 {[%emt 0:01:05]} Bf8 {[%emt 0:03:05]} 48. Qxb5 {[%emt 0:02:05]} g3 {[%emt 0:00:18]} 49. Qxc4 {[%emt 0:01:47]} g2 {[%emt 0:01:01]} 50. Qg4+ {[%emt 0:00:00]} Qg5 {[%emt 0:00:08]} 51. Qd4+ {[%emt 0:00:00]} Kh7 {[%emt 0:00:02]} 52. Qg1 {[%emt 0:00:00]} Qd5+ {[%emt 0:03:13]} 0-1

[Event "Asian Amateur-ch Open 2022"]
[Site "Muscat"]
[Date "2022.10.02"]
[Round "2.22"]
[White "Said Ahmed Ali Jidal Fadhil"]
[Black "Al Balushi, Said"]
[Result "1/2-1/2"]
[ECO "A91"]
[WhiteElo "1755"]
[BlackElo "1495"]
[Annotator "NA RC COMBH"]
[PlyCount "76"]
[EventDate "2022.09.29"]
[EventType "swiss"]
[SourceTitle "playchess.com"]
[Source "ChessBase"]
[SourceQuality "1"]
[TimeControl "5400+30"]

1. d4 {[%emt 0:00:04]} f5 {[%emt 0:01:30]} 2. g3 {[%emt 0:00:05]} Nf6 {[%emt 0:02:04]} 3. Bg2 {[%emt 0:00:02]} e6 {[%emt 0:00:37]} 4. Nh3 {[%emt 0:00:07]} Be7 {[%emt 0:00:23]} 5. O-O {[%emt 0:00:02]} O-O {[%emt 0:00:54]} 6. c4 {[%emt 0:00:03]} d6 {[%emt 0:00:21]} 7. Nc3 {[%emt 0:00:06]} c6 {[%emt 0:00:46]} 8. Nf4 {[%emt 0:07:59]} Qc7 {[%emt 0:03:26]} 9. d5 {[%emt 0:01:53]} e5 {[%emt 0:01:44]} 10. Ne6 {[%emt 0:00:52]} Bxe6 {[%emt 0:00:48]} 11. dxe6 {[%emt 0:00:02]} Na6 {[%emt 0:13:05]} 12. Qc2 {[%emt 0:03:55]} e4 {[%emt 0:02:34]} 13. Bh3 {[%emt 0:03:01]} Nh5 {[%emt 0:09:51]} 14. a3 {[%emt 0:14:29]} Nc5 {[%emt 0:02:36]} 15. b4 {[%emt 0:06:58]} Nxe6 {[%emt 0:03:12]} 16. e3 {[%emt 0:04:51]} Ng5 {[%emt 0:08:53]} 17. Bg2 {[%emt 0:00:03]} Nf6 {[%emt 0:04:23]} 18. Bb2 {[%emt 0:01:58]} Ng4 {[%emt 0:06:13]} 19. Ne2 {[%emt 0:05:34]} Bf6 {[%emt 0:12:47]} 20. Bxf6 {[%emt 0:01:22]} Rxf6 {[%emt 0:00:35]} 21. h4 {[%emt 0:01:43]} Nf7 {[%emt 0:06:00]} 22. Bh3 {[%emt 0:10:01]} Nfe5 {[%emt 0:03:40]} 23. Bxg4 {[%emt 0:05:13]} Nxg4 {[%emt 0:00:18]} 24. Kg2 {[%emt 0:00:38]} Ne5 {[%emt 0:01:22]} 25. Nf4 {[%emt 0:02:24]} Ng6 {[%emt 0:03:53]} 26. Nxg6 {[%emt 0:05:13]} Rxg6 {[%emt 0:00:13]} 27. Rad1 {[%emt 0:02:50]} Qe7 {[%emt 0:01:07]} 28. b5 {[%emt 0:03:14]} Qxh4 {[%emt 0:01:07]} 29. Rxd6 {[%emt 0:03:59]} Qg4 {[%emt 0:00:43]} 30. Rxg6 {[%emt 0:01:32]} Qxg6 {[%emt 0:01:34]} 31. Rd1 {[%emt 0:02:01]} Qe6 {[%emt 0:02:59]} 32. c5 {[%emt 0:03:02]} cxb5 {[%emt 0:00:33]} 33. Rd6 {[%emt 0:05:15]} Qf7 {[%emt 0:02:16]} 34. Qd2 {[%emt 0:01:41]} Re8 {[%emt 0:03:52]} 35. Rd7 {[%emt 0:01:43]} Re7 {[%emt 0:00:02]} 36. Rd8+ {[%emt 0:00:03]} Re8 {[%emt 0:00:02]} 37. Rd7 {[%emt 0:01:18]} Re7 {[%emt 0:00:59]} 38. Rd8+ {[%emt 0:02:17]} Re8 {[%emt 0:00:13]} 1/2-1/2

[Event "Asian Amateur-ch Open 2022"]
[Site "Muscat"]
[Date "2022.10.02"]
[Round "2.23"]
[White "Al Darwashi, Usama"]
[Black "Jaradat, Othman"]
[Result "0-1"]
[ECO "E05"]
[WhiteElo "1489"]
[BlackElo "1751"]
[Annotator "NA RC COMBH"]
[PlyCount "42"]
[EventDate "2022.09.29"]
[EventType "swiss"]
[SourceTitle "playchess.com"]
[Source "ChessBase"]
[SourceQuality "1"]
[TimeControl "5400+30"]

1. d4 {[%emt 0:00:08]} e6 {[%emt 0:00:07]} 2. c4 {[%emt 0:00:58]} d5 {[%emt 0:00:10]} 3. Nf3 {[%emt 0:00:08]} Nf6 {[%emt 0:01:10]} 4. g3 {[%emt 0:00:08]} Be7 {[%emt 0:00:32]} 5. Bg2 {[%emt 0:00:18]} dxc4 {[%emt 0:00:48]} 6. Qc2 {[%emt 0:01:04]} b5 {[%emt 0:01:39]} 7. a4 {[%emt 0:09:08]} c6 {[%emt 0:07:34]} 8. O-O {[%emt 0:15:48]} Bb7 {[%emt 0:03:59]} 9. b3 {[%emt 0:02:38]} cxb3 {[%emt 0:06:32]} 10. Qxb3 {[%emt 0:00:16]} a6 {[%emt 0:06:29]} 11. Rd1 {[%emt 0:08:42]} O-O {[%emt 0:05:30]} 12. Bf4 {[%emt 0:09:18]} Nbd7 {[%emt 0:04:29]} 13. Na3 {[%emt 0:08:59]} Nb6 {[%emt 0:05:30]} 14. axb5 {[%emt 0:08:16]} cxb5 {[%emt 0:04:39]} 15. Rac1 {[%emt 0:02:45]} Nfd5 {[%emt 0:13:22]} 16. Rc2 {[%emt 0:07:08]} Nxf4 {[%emt 0:02:01]} 17. gxf4 {[%emt 0:00:03]} Qd6 {[%emt 0:01:04]} 18. Nxb5 {[%emt 0:07:30]} axb5 {[%emt 0:00:53]} 19. Qxb5 {[%emt 0:00:03]} Be4 {[%emt 0:05:32]} 20. Rc5 {[%emt 0:05:53]} Rfb8 {[%emt 0:06:23]} 21. e3 {[%emt 0:04:09]} Nd7 {[%emt 0:01:51]} 0-1

[Event "Asian Amateur-ch Open 2022"]
[Site "Muscat"]
[Date "2022.10.02"]
[Round "2.24"]
[White "Krishanu Sai"]
[Black "Shelke Omkar"]
[Result "1-0"]
[ECO "B47"]
[WhiteElo "1748"]
[BlackElo "1460"]
[Annotator "NA RC COMBH"]
[PlyCount "129"]
[EventDate "2022.09.29"]
[EventType "swiss"]
[SourceTitle "playchess.com"]
[Source "ChessBase"]
[SourceQuality "1"]
[TimeControl "5400+30"]

1. e4 {[%emt 0:00:02]} c5 {[%emt 0:00:05]} 2. Nf3 {[%emt 0:00:05]} e6 {[%emt 0:00:04]} 3. d4 {[%emt 0:00:06]} cxd4 {[%emt 0:00:04]} 4. Nxd4 {[%emt 0:00:08]} a6 {[%emt 0:00:12]} 5. Nc3 {[%emt 0:00:28]} Qc7 {[%emt 0:00:22]} 6. Be2 {[%emt 0:01:07]} Nf6 {[%emt 0:00:26]} 7. O-O {[%emt 0:01:34]} Nc6 {[%emt 0:00:30]} 8. Nxc6 {[%emt 0:02:10]} bxc6 {[%emt 0:06:00]} 9. Be3 {[%emt 0:02:24]} d5 {[%emt 0:01:22]} 10. exd5 {[%emt 0:08:16]} cxd5 {[%emt 0:01:16]} 11. Bf3 {[%emt 0:06:20]} Bd6 {[%emt 0:02:02]} 12. g3 {[%emt 0:00:55]} O-O {[%emt 0:01:01]} 13. Qd3 {[%emt 0:06:39]} Bb7 {[%emt 0:02:23]} 14. Rfe1 {[%emt 0:12:57]} Rac8 {[%emt 0:01:52]} 15. Rac1 {[%emt 0:00:53]} Rfd8 {[%emt 0:09:20]} 16. Ne2 {[%emt 0:13:21]} e5 {[%emt 0:03:41]} 17. Bg2 {[%emt 0:02:57]} Ng4 {[%emt 0:25:50]} 18. Bh3 {[%emt 0:15:16]} h5 {[%emt 0:10:41]} 19. Bg5 {[%emt 0:02:59]} f6 {[%emt 0:01:02]} 20. Bd2 {[%emt 0:00:33]} Bc5 {[%emt 0:02:53]} 21. Rf1 {[%emt 0:05:37]} Qb6 {[%emt 0:05:29]} 22. Qf5 {[%emt 0:01:25]} Rc7 {[%emt 0:09:07]} 23. b4 {[%emt 0:01:02]} Bf8 {[%emt 0:03:54]} 24. Qxh5 {[%emt 0:00:33]} Nh6 {[%emt 0:02:34]} 25. Qg6 {[%emt 0:00:24]} Kh8 {[%emt 0:03:03]} 26. g4 {[%emt 0:06:29]} d4 {[%emt 0:01:30]} 27. g5 {[%emt 0:01:56]} Qc6 {[%emt 0:00:23]} 28. f3 {[%emt 0:00:09]} fxg5 {[%emt 0:00:30]} 29. Qxc6 {[%emt 0:00:30]} Rxc6 {[%emt 0:00:06]} 30. Ng3 {[%emt 0:01:21]} Be7 {[%emt 0:00:53]} 31. Rfe1 {[%emt 0:00:47]} Bf6 {[%emt 0:00:26]} 32. Ne4 {[%emt 0:01:02]} Nf7 {[%emt 0:01:10]} 33. a4 {[%emt 0:00:47]} Bc8 {[%emt 0:03:06]} 34. Bf1 {[%emt 0:00:19]} Bf5 {[%emt 0:02:20]} 35. b5 {[%emt 0:02:05]} axb5 {[%emt 0:00:02]} 36. axb5 {[%emt 0:00:27]} Rcc8 {[%emt 0:01:10]} 37. b6 {[%emt 0:01:17]} Bxe4 {[%emt 0:00:16]} 38. fxe4 {[%emt 0:00:02]} Rd6 {[%emt 0:00:56]} 39. Rb1 {[%emt 0:02:02]} Rb8 {[%emt 0:00:20]} 40. Ba5 {[%emt 0:00:27]} Nd8 {[%emt 0:01:33]} 41. Rb5 {[%emt 0:01:05]} Nc6 {[%emt 0:00:28]} 42. Bd2 {[%emt 0:00:28]} Nd8 {[%emt 0:00:24]} 43. Reb1 {[%emt 0:00:15]} Rc6 {[%emt 0:00:34]} 44. Bd3 {[%emt 0:00:25]} Nb7 {[%emt 0:00:25]} 45. Bb4 {[%emt 0:01:28]} Nd6 {[%emt 0:00:40]} 46. Bxd6 {[%emt 0:00:11]} Rxd6 {[%emt 0:00:01]} 47. b7 {[%emt 0:00:38]} Kg8 {[%emt 0:00:58]} 48. Kf2 {[%emt 0:00:08]} Kf8 {[%emt 0:00:31]} 49. Kf3 {[%emt 0:00:39]} Ke7 {[%emt 0:00:15]} 50. Kg4 {[%emt 0:00:24]} Rdd8 {[%emt 0:00:08]} 51. Bc4 {[%emt 0:01:24]} Rh8 {[%emt 0:00:36]} 52. Kg3 {[%emt 0:00:45]} Kd7 {[%emt 0:00:54]} 53. Bd5 {[%emt 0:00:15]} Kc7 {[%emt 0:00:29]} 54. Rc5+ {[%emt 0:00:29]} Kd6 {[%emt 0:00:36]} 55. Rc6+ {[%emt 0:00:15]} Kd7 {[%emt 0:00:05]} 56. Ra6 {[%emt 0:00:20]} Kc7 {[%emt 0:00:34]} 57. Rb5 {[%emt 0:00:19]} Be7 {[%emt 0:00:51]} 58. Rc6+ {[%emt 0:01:11]} Kd7 {[%emt 0:00:27]} 59. Rc4 {[%emt 0:00:09]} Bd6 {[%emt 0:00:34]} 60. Ra5 {[%emt 0:00:44]} Bc7 {[%emt 0:00:34]} 61. Ra6 {[%emt 0:00:03]} Bd8 {[%emt 0:00:23]} 62. Rc8 {[%emt 0:00:59]} Bf6 {[%emt 0:00:33]} 63. Rxh8 {[%emt 0:00:40]} Rxh8 {[%emt 0:00:30]} 64. Ra8 {[%emt 0:00:08]} Kc7 {[%emt 0:00:14]} 65. Rxh8 {[%emt 0:01:47]} 1-0

[Event "Asian Amateur-ch Open 2022"]
[Site "Muscat"]
[Date "2022.10.02"]
[Round "2.25"]
[White "Hamdan Edrees, Alhamed"]
[Black "Srivatsan Karthikeyan"]
[Result "0-1"]
[ECO "C88"]
[WhiteElo "1467"]
[BlackElo "1711"]
[Annotator "NA RC COMBH"]
[PlyCount "86"]
[EventDate "2022.09.29"]
[EventType "swiss"]
[SourceTitle "playchess.com"]
[Source "ChessBase"]
[SourceQuality "1"]
[TimeControl "5400+30"]

1. e4 {[%emt 0:00:02]} e5 {[%emt 0:00:12]} 2. Nf3 {[%emt 0:00:10]} Nc6 {[%emt 0:00:04]} 3. Bb5 {[%emt 0:00:10]} a6 {[%emt 0:00:06]} 4. Ba4 {[%emt 0:00:05]} Nf6 {[%emt 0:00:05]} 5. O-O {[%emt 0:00:13]} Be7 {[%emt 0:00:04]} 6. Re1 {[%emt 0:01:04]} b5 {[%emt 0:00:04]} 7. Bb3 {[%emt 0:00:09]} O-O {[%emt 0:00:09]} 8. a4 {[%emt 0:00:04]} b4 {[%emt 0:01:37]} 9. d3 {[%emt 0:00:46]} d6 {[%emt 0:01:51]} 10. h3 {[%emt 0:00:07]} Na5 {[%emt 0:02:41]} 11. Ba2 {[%emt 0:00:28]} c5 {[%emt 0:03:56]} 12. Nbd2 {[%emt 0:00:13]} h6 {[%emt 0:02:03]} 13. Nc4 {[%emt 0:02:01]} Nxc4 {[%emt 0:03:44]} 14. Bxc4 {[%emt 0:00:10]} Be6 {[%emt 0:00:03]} 15. Nd2 {[%emt 0:01:01]} Qd7 {[%emt 0:09:18]} 16. Bxe6 {[%emt 0:01:07]} Qxe6 {[%emt 0:02:07]} 17. Nc4 {[%emt 0:00:12]} Nh7 {[%emt 0:00:23]} 18. f4 {[%emt 0:00:12]} exf4 {[%emt 0:05:27]} 19. Bxf4 {[%emt 0:00:51]} Rad8 {[%emt 0:00:04]} 20. Ne3 {[%emt 0:00:42]} Bf6 {[%emt 0:03:46]} 21. Rb1 {[%emt 0:07:09]} Bd4 {[%emt 0:02:41]} 22. Kh1 {[%emt 0:00:56]} Bxe3 {[%emt 0:01:30]} 23. Bxe3 {[%emt 0:00:07]} f5 {[%emt 0:07:32]} 24. exf5 {[%emt 0:01:53]} Qxf5 {[%emt 0:02:36]} 25. Qe2 {[%emt 0:01:08]} Rde8 {[%emt 0:06:01]} 26. d4 {[%emt 0:01:10]} cxd4 {[%emt 0:08:15]} 27. Qc4+ {[%emt 0:03:09]} d5 {[%emt 0:00:04]} 28. Qxd4 {[%emt 0:00:04]} Re4 {[%emt 0:00:04]} 29. Qd2 {[%emt 0:00:20]} Rfe8 {[%emt 0:02:08]} 30. Bd4 {[%emt 0:02:02]} a5 {[%emt 0:05:20]} 31. c3 {[%emt 0:04:21]} Ng5 {[%emt 0:03:32]} 32. Rf1 {[%emt 0:11:04]} Qe6 {[%emt 0:02:10]} 33. cxb4 {[%emt 0:01:40]} Re2 {[%emt 0:00:12]} 34. Qc3 {[%emt 0:00:37]} axb4 {[%emt 0:01:55]} 35. Qc7 {[%emt 0:01:19]} Re7 {[%emt 0:01:05]} 36. Qb8+ {[%emt 0:05:33]} Kh7 {[%emt 0:00:06]} 37. Qg3 {[%emt 0:00:24]} Ne4 {[%emt 0:01:09]} 38. Qd3 {[%emt 0:00:34]} Rd2 {[%emt 0:00:35]} 39. Qe3 {[%emt 0:01:03]} Qg6 {[%emt 0:00:10]} 40. g4 {[%emt 0:10:33]} Nf2+ {[%emt 0:00:52]} 41. Qxf2 {[%emt 0:00:07]} Rxf2 {[%emt 0:00:04]} 42. Bxf2 {[%emt 0:00:08]} Re2 {[%emt 0:00:09]} 43. a5 {[%emt 0:00:51]} Rxf2 {[%emt 0:00:15]} 0-1

[Event "Asian Amateur-ch Open 2022"]
[Site "Muscat"]
[Date "2022.10.02"]
[Round "2.26"]
[White "Ranjith, R.k."]
[Black "Fadhil, khalid Ali"]
[Result "1-0"]
[ECO "B23"]
[WhiteElo "1706"]
[BlackElo "1451"]
[Annotator "NA RC COMBH"]
[PlyCount "38"]
[EventDate "2022.09.29"]
[EventType "swiss"]
[SourceTitle "playchess.com"]
[Source "ChessBase"]
[SourceQuality "1"]
[TimeControl "5400+30"]

1. e4 {[%emt 0:00:04]} c5 {[%emt 0:00:12]} 2. Nc3 {[%emt 0:00:18]} g6 {[%emt 0:00:39]} 3. d4 {[%emt 0:03:47]} e6 {[%emt 0:01:55]} 4. Nf3 {[%emt 0:02:16]} a6 {[%emt 0:03:06]} 5. Be3 {[%emt 0:06:00]} b6 {[%emt 0:07:41]} 6. d5 {[%emt 0:00:42]} d6 {[%emt 0:02:57]} 7. a4 {[%emt 0:04:23]} Bg7 {[%emt 0:03:33]} 8. dxe6 {[%emt 0:02:09]} Bxe6 {[%emt 0:01:07]} 9. Qd2 {[%emt 0:00:31]} Ne7 {[%emt 0:04:49]} 10. O-O-O {[%emt 0:01:40]} O-O {[%emt 0:01:33]} 11. Bh6 {[%emt 0:00:42]} Nbc6 {[%emt 0:05:54]} 12. h4 {[%emt 0:01:29]} b5 {[%emt 0:01:43]} 13. h5 {[%emt 0:01:07]} g5 {[%emt 0:12:22]} 14. Qxg5 {[%emt 0:00:46]} Nf5 {[%emt 0:00:01]} 15. exf5 {[%emt 0:00:28]} Qxg5+ {[%emt 0:00:27]} 16. Bxg5 {[%emt 0:00:03]} Bxf5 {[%emt 0:00:08]} 17. Rxd6 {[%emt 0:06:41]} Nb4 {[%emt 0:00:48]} 18. Bd3 {[%emt 0:00:40]} Bxd3 {[%emt 0:01:26]} 19. cxd3 {[%emt 0:00:02]} Rad8 {[%emt 0:00:07]} 1-0